fUSD/lending_fUSD_20260520
["ID","MTS","AMOUNT","RATE_DAILY","PERIOD"]
[422682973,1779240633000,-309.03960432,0.00010472,2]
[422682989,1779240633000,-493.0,0.00010472,2]
[422682972,1779240633000,-500.0,0.00010472,2]
[422682965,1779240633000,-500.0,0.00010472,2]
[422682969,1779240633000,-493.0,0.00010472,2]
[422682955,1779240633000,-500.0,0.00010472,2]
[422682956,1779240633000,-493.0,0.00010472,2]
[422682957,1779240633000,-500.0,0.00010472,2]
[422682959,1779240633000,-500.0,0.00010472,2]
[422682960,1779240633000,-493.0,0.00010472,2]
[422682961,1779240633000,-500.0,0.00010472,2]
[422682962,1779240633000,-500.0,0.00010472,2]
[422682971,1779240633000,-535.68633723,0.00010472,2]
[422682958,1779240633000,-500.0,0.00010472,2]
[422682967,1779240633000,-500.0,0.00010472,2]
[422682992,1779240633000,-623.0,0.00010472,2]
[422682968,1779240633000,-500.0,0.00010472,2]
[422682964,1779240633000,-500.0,0.00010472,2]
[422682963,1779240633000,-592.0,0.00010472,2]
[422682970,1779240633000,-500.0,0.00010472,2]
[422682980,1779240633000,-493.0,0.00010472,2]
[422682966,1779240633000,-500.0,0.00010472,2]
[422682987,1779240633000,-623.0,0.00010472,2]
[422682984,1779240633000,-500.0,0.00010472,2]
[422682994,1779240633000,-623.0,0.00010472,2]
[422683007,1779240633000,-623.0,0.00010472,2]
[422683017,1779240633000,-623.0,0.00010472,2]
[422683018,1779240633000,-500.0,0.00010472,2]
[422683023,1779240633000,-623.0,0.00010472,2]
[422683025,1779240633000,-623.0,0.00010472,2]
[422683024,1779240633000,-506.0,0.00010472,2]
[422683021,1779240633000,-349.07736479,0.00010472,2]
[422683020,1779240633000,-493.0,0.00010472,2]
[422683019,1779240633000,-623.0,0.00010472,2]
[422683026,1779240633000,-623.0,0.00010472,2]
[422683022,1779240633000,-623.0,0.00010472,2]
[422682995,1779240633000,-500.0,0.00010472,2]
[422683029,1779240633000,-517.85642429,0.00010483,2]
[422683028,1779240633000,-500.0,0.00010472,2]
[422683030,1779240633000,-153.13461368,0.00010483,2]
[422683032,1779240633000,-5045.07612669,0.00010484,2]
[422683031,1779240633000,-518.78856871,0.00010483,2]
[422683016,1779240633000,-623.0,0.00010472,2]
[422683013,1779240633000,-623.0,0.00010472,2]
[422683027,1779240633000,-623.38423794,0.00010472,2]
[422683014,1779240633000,-623.0,0.00010472,2]
[422683012,1779240633000,-623.0,0.00010472,2]
[422682998,1779240633000,-500.0,0.00010472,2]
[422682997,1779240633000,-623.0,0.00010472,2]
[422683002,1779240633000,-500.0,0.00010472,2]
[422682996,1779240633000,-623.0,0.00010472,2]
[422682999,1779240633000,-623.0,0.00010472,2]
[422683005,1779240633000,-623.0,0.00010472,2]
[422683001,1779240633000,-623.0,0.00010472,2]
[422683000,1779240633000,-500.0,0.00010472,2]
[422683003,1779240633000,-623.0,0.00010472,2]
[422683004,1779240633000,-500.0,0.00010472,2]
[422683006,1779240633000,-500.0,0.00010472,2]
[422683008,1779240633000,-500.0,0.00010472,2]
[422683009,1779240633000,-623.0,0.00010472,2]
[422683010,1779240633000,-500.0,0.00010472,2]
[422683011,1779240633000,-493.0,0.00010472,2]
[422683015,1779240633000,-500.0,0.00010472,2]
[422683043,1779240638000,-500.0,0.00010483,2]
[422683045,1779240638000,-321.50823258,0.00010483,2]
[422683042,1779240638000,-193.4,0.00010027,2]
[422683044,1779240638000,-404.62780294,0.00010483,2]
[422683046,1779240638000,-178.49176742,0.00010483,2]
[422683047,1779240638000,-189.23754468,0.00010483,2]
[422683353,1779240641000,-1300078.74991015,0.00010484,2]
[422683352,1779240641000,-471.95013369,0.00010484,2]
[422683351,1779240641000,-1639.23754468,0.00010484,2]
[422683350,1779240641000,-310.76245532,0.00010483,2]
[422683455,1779240643000,-5702.30603536,0.00010484,2]
[422683453,1779240643000,-147695.02165569,0.00010484,2]
[422683466,1779240643000,-3179.171,0.00010499,2]
[422683465,1779240643000,-39367.65859374,0.00010484,2]
[422683468,1779240643000,-25143.4618,0.000105,2]
[422683467,1779240643000,-232.542,0.00010499,2]
[422683473,1779240643000,-1072.29977514,0.000105,2]
[422683471,1779240643000,-2500.0,0.000105,2]
[422683470,1779240643000,-10000.0,0.000105,2]
[422683472,1779240643000,-5000.0,0.000105,2]
[422683475,1779240643000,-4170.3749,0.000105,2]
[422683474,1779240643000,-240.93162124,0.000105,2]
[422683476,1779240643000,-676157.20849593,0.000106,2]
[422683477,1779240643000,-6750.0,0.000106,2]
[422683469,1779240643000,-2000.0,0.000105,2]
[422683496,1779240646000,-344.68208096,0.000106,2]
[422683494,1779240646000,-511.0,0.000106,2]
[422683495,1779240646000,-11990.42507453,0.000106,2]
[422683500,1779240646000,-1999.958517,0.000106,2]
[422683498,1779240646000,-8906.59214745,0.000106,2]
[422683499,1779240646000,-11947.57819722,0.000106,2]
[422683497,1779240646000,-287.49546047,0.000106,2]
[422683529,1779240773000,1007.37,0.000102,3]
[422683530,1779240794000,2167.498,0.00030137,120]
[422683531,1779240947000,1000.0,0.000105,4]
[422683532,1779240952000,1000.0,0.000105,5]
[422683533,1779240952000,158.59,9.911e-05,2]
[422683535,1779240966000,3811.84,9.879e-05,2]
[422683536,1779240975000,1000.0,0.000105,6]
[422683537,1779241031000,355.04,0.00029986,120]
[422683538,1779241055000,219.0,0.00030136,120]
[422683539,1779241156000,3000.0,0.0003013,120]
[422683540,1779241187000,292.55428223,9.945e-05,2]
[422683541,1779241244000,156.1,0.00030082,120]
[422683542,1779241253000,1000.0,0.00030137,120]
[422683543,1779241309000,200.0,9.782e-05,2]
[422683545,1779241346000,178.6,5.027e-05,2]
[422683546,1779241377000,552.41,9.745e-05,2]
[422683547,1779241434000,2650.12,9.879e-05,2]
[422683548,1779241447000,854.47,9.666e-05,2]
[422683549,1779241462000,256.778419,9.977e-05,2]
[422683550,1779241471000,211.12,9.695e-05,2]
[422683551,1779241499000,251.7,9.695e-05,2]
[422683557,1779241684000,10000.0,0.00030137,120]
[422683558,1779241707000,10000.0,0.00030137,120]
[422683559,1779241740000,1000.0,0.00030136,120]
[422683560,1779241764000,151.06289285,0.00010068,7]
[422683568,1779241831000,-300.0,0.00010097,2]
[422683571,1779241831000,-8045.54526625,0.00010098,2]
[422683565,1779241831000,-210.42607263,0.00010096,2]
[422683566,1779241831000,-1200.0,0.00010097,2]
[422683567,1779241831000,-300.0,0.00010097,2]
[422683569,1779241831000,-11174.58996379,0.00010098,2]
[422683570,1779241831000,-1254.09285305,0.00010098,2]
[422683564,1779241831000,-395.2393174,0.00010088,2]
[422683563,1779241831000,-428.2,0.00010027,2]
[422683575,1779241832000,-16429.76138174,0.00010098,2]
[422683572,1779241832000,-3383.42896817,0.00010098,2]
[422683574,1779241832000,-81149.59567753,0.00010098,2]
[422683576,1779241832000,-688.58850667,0.00010098,2]
[422683573,1779241832000,-57649.64870292,0.00010098,2]
[422683581,1779241832000,-169.15663764,0.00010097,2]
[422683594,1779241832000,-420.0,0.00010097,2]
[422683587,1779241832000,-7240.48964234,0.00010098,2]
[422683585,1779241832000,-153.36352903,0.00010097,2]
[422683583,1779241832000,-346.63647097,0.00010097,2]
[422683579,1779241832000,-500.0,0.00010097,2]
[422683597,1779241837000,-500.0,0.00010097,2]
[422683598,1779241837000,-150.14231373,0.00010097,2]
[422683596,1779241837000,-178.49853858,0.00010097,2]
[422683599,1779241837000,-500.0,0.00010097,2]
[422683620,1779241838000,-506.92850436,0.00010097,2]
[422683616,1779241838000,-597.70881037,0.00010097,2]
[422683619,1779241838000,-506.92850436,0.00010097,2]
[422683615,1779241838000,-506.92850436,0.00010097,2]
[422683631,1779241838000,-506.92850436,0.00010097,2]
[422683618,1779241838000,-46.96650776,0.00010097,2]
[422683630,1779241838000,-506.92850436,0.00010097,2]
[422683617,1779241838000,-459.9619966,0.00010097,2]
[422683632,1779241838000,-506.92850436,0.00010097,2]
[422683633,1779241838000,-506.92850436,0.00010097,2]
[422683625,1779241838000,-506.92850436,0.00010097,2]
[422683614,1779241838000,-500.0,0.00010097,2]
[422683613,1779241838000,-506.92850436,0.00010097,2]
[422683610,1779241838000,-404.66470838,0.00010097,2]
[422683611,1779241838000,-500.0,0.00010097,2]
[422683621,1779241838000,-506.92850436,0.00010097,2]
[422683612,1779241838000,-506.92850436,0.00010097,2]
[422683608,1779241838000,-500.0,0.00010097,2]
[422683607,1779241838000,-506.92850436,0.00010097,2]
[422683606,1779241838000,-500.64693792,0.00010097,2]
[422683604,1779241838000,-500.0,0.00010097,2]
[422683609,1779241838000,-506.92850436,0.00010097,2]
[422683605,1779241838000,-506.92850436,0.00010097,2]
[422683603,1779241838000,-61.0761938,0.00010097,2]
[422683602,1779241838000,-438.9238062,0.00010097,2]
[422683600,1779241838000,-506.92850436,0.00010097,2]
[422683601,1779241838000,-500.0,0.00010097,2]
[422683623,1779241838000,-506.92850436,0.00010097,2]
[422683622,1779241838000,-506.92850436,0.00010097,2]
[422683627,1779241838000,-506.92850436,0.00010097,2]
[422683635,1779241838000,-506.92850436,0.00010097,2]
[422683624,1779241838000,-506.92850436,0.00010097,2]
[422683674,1779241838000,-5886.54546203,0.00010098,2]
[422683675,1779241838000,-6275.55825757,0.00010098,2]
[422683672,1779241838000,-4716.83026371,0.00010098,2]
[422683668,1779241838000,-25389.75032656,0.00010098,2]
[422683629,1779241838000,-506.92850436,0.00010097,2]
[422683656,1779241838000,-506.92850436,0.00010097,2]
[422683654,1779241838000,-506.92850436,0.00010097,2]
[422683662,1779241838000,-506.92850436,0.00010097,2]
[422683650,1779241838000,-506.92850436,0.00010097,2]
[422683652,1779241838000,-506.92850436,0.00010097,2]
[422683665,1779241838000,-506.92850436,0.00010097,2]
[422683646,1779241838000,-506.92850436,0.00010097,2]
[422683660,1779241838000,-506.92850436,0.00010097,2]
[422683658,1779241838000,-506.92850436,0.00010097,2]
[422683666,1779241838000,-506.92850436,0.00010097,2]
[422683644,1779241838000,-506.92850436,0.00010097,2]
[422683626,1779241838000,-506.92850436,0.00010097,2]
[422683628,1779241838000,-506.92850436,0.00010097,2]
[422683642,1779241838000,-506.92850436,0.00010097,2]
[422683641,1779241838000,-506.92850436,0.00010097,2]
[422683640,1779241838000,-506.92850436,0.00010097,2]
[422683643,1779241838000,-506.92850436,0.00010097,2]
[422683647,1779241838000,-506.92850436,0.00010097,2]
[422683639,1779241838000,-506.92850436,0.00010097,2]
[422683645,1779241838000,-506.92850436,0.00010097,2]
[422683638,1779241838000,-506.92850436,0.00010097,2]
[422683636,1779241838000,-506.92850436,0.00010097,2]
[422683637,1779241838000,-506.92850436,0.00010097,2]
[422683634,1779241838000,-506.92850436,0.00010097,2]
[422683741,1779241846000,-8291.1347507,0.00010098,2]
[422683740,1779241846000,-12432.58166921,0.00010098,2]
[422683739,1779241846000,-298.34,0.00010098,2]
[422683871,1779241910000,4140.47,9.879e-05,2]
[422683873,1779241943000,150.0,0.00010068,7]
[422683875,1779241969000,2000.0,9.998e-05,2]
[422683876,1779241975000,628.297,9.998e-05,2]
[422683877,1779241987000,2500.0,9.998e-05,2]
[422683878,1779241993000,2000.0,9.51e-05,2]
[422683880,1779242008000,2555.385,9.896e-05,2]
[422683879,1779242008000,186.582,9.896e-05,2]
[422683881,1779242017000,7009.91288767,0.0001,2]
[422683882,1779242020000,500.0,0.0001,2]
[422683883,1779242038000,6804.5121,9.998e-05,2]
[422683884,1779242078000,200.0,9.6e-05,3]
[422683885,1779242080000,500.0,9.7e-05,3]
[422683886,1779242082000,800.0,9.8e-05,3]
[422683887,1779242084000,1100.0,9.9e-05,3]
[422683888,1779242086000,1300.0,0.0001,3]
[422683889,1779242123000,500.0,9.96e-05,2]
[422683890,1779242127000,204.95,4.832e-05,2]
[422683891,1779242132000,2000.0,9.998e-05,2]
[422683892,1779242149000,200.0,9.432e-05,2]
[422683893,1779242151000,2500.0,9.998e-05,2]
[422683894,1779242203000,276.2,9.407e-05,2]
[422683895,1779242269000,2000.0,9.998e-05,2]
[422683898,1779242309000,2500.0,9.997e-05,2]
[422683899,1779242333000,5000.0,9.997e-05,2]
[422683900,1779242433000,2000.0,9.997e-05,2]
[422683901,1779242451000,2500.0,9.997e-05,2]
[422683902,1779242461000,51097.27702566,0.0001,2]
[422683903,1779242466000,300.0,0.00030137,120]
[422683904,1779242497000,5000.0,9.997e-05,2]
[422683905,1779242503000,159.16,9.372e-05,2]
[422683906,1779242549000,850.44540735,9.945e-05,2]
[422683907,1779242552000,212.82417601,9.945e-05,2]
[422683908,1779242574000,10000.0,9.998e-05,2]
[422683909,1779242593000,2000.0,9.997e-05,2]
[422683911,1779242608000,2044.308,9.895e-05,2]
[422683910,1779242608000,186.582,9.895e-05,2]
[422683912,1779242617000,2500.0,9.997e-05,2]
[422683913,1779242622000,500.0,9.341e-05,2]
[422683914,1779242635000,104180.59,9.879e-05,2]
[422683915,1779242642000,5000.0,9.997e-05,2]
[422683916,1779242653000,170.5347257,0.0003,120]
[422683918,1779242685000,9715.97,9.37e-05,2]
[422683919,1779242691000,395.41532473,7.888e-05,2]
[422683920,1779242691000,429.0,9.879e-05,2]
[422683923,1779242750000,2000.0,9.997e-05,2]
[422683924,1779242768000,99142.1824,9.997e-05,2]
[422683925,1779242775000,2500.0,9.997e-05,2]
[422683926,1779242802000,5000.0,9.997e-05,2]
[422683927,1779242826000,6804.5121,9.997e-05,2]
[422683928,1779242844000,2000.0,9.265e-05,2]
[422683931,1779242890000,506587.30766074,9.996e-05,2]
[422683930,1779242890000,1987988.56763851,9.996e-05,2]
[422683929,1779242890000,5424.12470075,9.996e-05,2]
[422683933,1779242914000,200.0,9.245e-05,2]
[422683932,1779242914000,2000.0,9.997e-05,2]
[422683934,1779242926000,167.2,4.71e-05,2]
[422683935,1779242927000,167.2,5.841e-05,2]
[422683936,1779242927000,167.2,6.972e-05,2]
[422683938,1779242927000,167.2,9.235e-05,2]
[422683937,1779242927000,167.2,8.104e-05,2]
[422683939,1779242932000,2500.0,9.997e-05,2]
[422683940,1779242941000,1000.0,0.00030136,120]
[422683941,1779242963000,5000.0,9.997e-05,2]
[422683942,1779242970000,1482876.69233926,9.997e-05,2]
[422683943,1779242972000,166.66,9.53e-05,2]
[422683944,1779243003000,2957.0,0.00010467,5]
[422683945,1779243004000,276.2,9.224e-05,2]
[422683946,1779243010000,221.12,0.00030082,120]
[422683948,1779243030000,152.0,0.00010067,7]
[422683947,1779243030000,152.0,0.00010067,7]
[422683949,1779243031000,152.0,0.0001007,7]
[422683960,1779243032000,-166.66,9.844e-05,2]
[422683990,1779243032000,-500.0,0.00010096,2]
[422683992,1779243032000,-500.0,0.00010096,2]
[422683989,1779243032000,-500.0,0.00010096,2]
[422683991,1779243032000,-500.0,0.00010096,2]
[422683993,1779243032000,-500.0,0.00010096,2]
[422683994,1779243032000,-500.0,0.00010096,2]
[422683988,1779243032000,-500.0,0.00010096,2]
[422683995,1779243032000,-500.0,0.00010096,2]
[422683996,1779243032000,-500.0,0.00010096,2]
[422684000,1779243032000,-500.0,0.00010096,2]
[422683986,1779243032000,-500.0,0.00010096,2]
[422684002,1779243032000,-500.0,0.00010096,2]
[422684006,1779243032000,-500.0,0.00010096,2]
[422684008,1779243032000,-500.0,0.00010096,2]
[422684010,1779243032000,-500.0,0.00010096,2]
[422684018,1779243032000,-500.0,0.00010096,2]
[422684012,1779243032000,-500.0,0.00010096,2]
[422684013,1779243032000,-500.0,0.00010096,2]
[422684014,1779243032000,-500.0,0.00010096,2]
[422684017,1779243032000,-500.0,0.00010096,2]
[422684020,1779243032000,-500.0,0.00010096,2]
[422684026,1779243032000,-500.0,0.00010096,2]
[422684004,1779243032000,-500.0,0.00010096,2]
[422683998,1779243032000,-500.0,0.00010096,2]
[422683987,1779243032000,-500.0,0.00010096,2]
[422683984,1779243032000,-344.18986782,0.00010096,2]
[422683962,1779243032000,-300.0,9.996e-05,2]
[422683973,1779243032000,-1001.89233487,0.00010095,2]
[422683963,1779243032000,-1200.0,9.996e-05,2]
[422683974,1779243032000,-1008.37916785,0.00010095,2]
[422683969,1779243032000,-163.22347975,0.00010047,2]
[422683964,1779243032000,-17123.30766074,9.997e-05,2]
[422683966,1779243032000,-163.44,0.00010018,2]
[422683968,1779243032000,-1713.87,0.00010027,2]
[422683972,1779243032000,-155.15277815,0.00010094,2]
[422683965,1779243032000,-500.0,0.00010018,2]
[422683971,1779243032000,-334.45227732,0.00010087,2]
[422683970,1779243032000,-163.22347975,0.00010048,2]
[422683967,1779243032000,-250.0,0.00010022,2]
[422683977,1779243032000,-163.390817,0.00010095,2]
[422683976,1779243032000,-150.0,0.00010095,2]
[422683975,1779243032000,-695.83915323,0.00010095,2]
[422683978,1779243032000,-169.70673494,0.00010096,2]
[422683980,1779243032000,-500.0,0.00010096,2]
[422683979,1779243032000,-500.0,0.00010096,2]
[422683981,1779243032000,-541.57425371,0.00010096,2]
[422683983,1779243032000,-500.0,0.00010096,2]
[422683985,1779243032000,-500.0,0.00010096,2]
[422684024,1779243032000,-500.0,0.00010096,2]
[422683961,1779243032000,-481.0,9.996e-05,2]
[422684029,1779243032000,-500.0,0.00010096,2]
[422683982,1779243032000,-304.30426866,0.00010096,2]
[422684031,1779243032000,-500.0,0.00010096,2]
[422684080,1779243032000,-500.0,0.00010096,2]
[422684084,1779243032000,-500.0,0.00010096,2]
[422684085,1779243032000,-500.0,0.00010096,2]
[422684089,1779243032000,-500.0,0.00010096,2]
[422684088,1779243032000,-500.0,0.00010096,2]
[422684090,1779243032000,-500.0,0.00010096,2]
[422684092,1779243032000,-500.0,0.00010096,2]
[422684091,1779243032000,-500.0,0.00010096,2]
[422684087,1779243032000,-500.0,0.00010096,2]
[422684086,1779243032000,-500.0,0.00010096,2]
[422684095,1779243032000,-500.0,0.00010096,2]
[422684093,1779243032000,-500.0,0.00010096,2]
[422684103,1779243032000,-63072.2702114,0.00010097,2]
[422684102,1779243032000,-535200.1257393,0.00010097,2]
[422684099,1779243032000,-500.0,0.00010096,2]
[422684104,1779243032000,-50927.89248604,0.00010097,2]
[422684096,1779243032000,-500.0,0.00010096,2]
[422684101,1779243032000,-500.0,0.00010096,2]
[422684105,1779243032000,-68171.53166742,0.00010097,2]
[422684100,1779243032000,-500.0,0.00010096,2]
[422684097,1779243032000,-500.0,0.00010096,2]
[422684098,1779243032000,-500.0,0.00010096,2]
[422684106,1779243032000,-1254.41808677,0.00010097,2]
[422684083,1779243032000,-500.0,0.00010096,2]
[422684082,1779243032000,-500.0,0.00010096,2]
[422684094,1779243032000,-500.0,0.00010096,2]
[422684075,1779243032000,-450.0,0.00010096,2]
[422684077,1779243032000,-500.0,0.00010096,2]
[422684035,1779243032000,-500.0,0.00010096,2]
[422684044,1779243032000,-500.0,0.00010096,2]
[422684033,1779243032000,-500.0,0.00010096,2]
[422684038,1779243032000,-500.0,0.00010096,2]
[422684042,1779243032000,-500.0,0.00010096,2]
[422684040,1779243032000,-495.84697629,0.00010096,2]
[422684048,1779243032000,-500.0,0.00010096,2]
[422684050,1779243032000,-500.0,0.00010096,2]
[422684057,1779243032000,-500.0,0.00010096,2]
[422684052,1779243032000,-500.0,0.00010096,2]
[422684046,1779243032000,-500.0,0.00010096,2]
[422684023,1779243032000,-500.0,0.00010096,2]
[422684063,1779243032000,-500.0,0.00010096,2]
[422684065,1779243032000,-500.0,0.00010096,2]
[422684067,1779243032000,-500.0,0.00010096,2]
[422684054,1779243032000,-500.0,0.00010096,2]
[422684059,1779243032000,-500.0,0.00010096,2]
[422684061,1779243032000,-500.0,0.00010096,2]
[422684069,1779243032000,-500.0,0.00010096,2]
[422684073,1779243032000,-500.0,0.00010096,2]
[422684071,1779243032000,-500.0,0.00010096,2]
[422684081,1779243032000,-500.0,0.00010096,2]
[422684079,1779243032000,-500.0,0.00010096,2]
[422684078,1779243032000,-500.0,0.00010096,2]
[422684108,1779243033000,-250.0,0.00010097,2]
[422684107,1779243033000,-568.47568301,0.00010097,2]
[422684115,1779243038000,-618.5,0.00010097,2]
[422684309,1779243040000,-243201.77488169,0.00010097,2]
[422684346,1779243040000,-26819.0,0.00010124,2]
[422684359,1779243040000,-500.0,0.00010198,2]
[422684357,1779243040000,-241.39448508,0.00010198,2]
[422684345,1779243040000,-163.33155694,0.000101,2]
[422684343,1779243040000,-567.089735,0.00010098,2]
[422684330,1779243040000,-989.127214,0.00010098,2]
[422684328,1779243040000,-204.39316636,0.00010098,2]
[422684337,1779243040000,-567.089735,0.00010098,2]
[422684339,1779243040000,-567.089735,0.00010098,2]
[422684336,1779243040000,-989.127214,0.00010098,2]
[422684341,1779243040000,-567.089735,0.00010098,2]
[422684334,1779243040000,-989.127214,0.00010098,2]
[422684326,1779243040000,-963.66410082,0.00010098,2]
[422684325,1779243040000,-150.03478911,0.00010097,2]
[422684323,1779243040000,-150.03478911,0.00010097,2]
[422684332,1779243040000,-989.127214,0.00010098,2]
[422684321,1779243040000,-150.03478911,0.00010097,2]
[422684319,1779243040000,-150.03478911,0.00010097,2]
[422684348,1779243040000,-163.22347975,0.00010149,2]
[422684316,1779243040000,-217.8540795,0.00010097,2]
[422684314,1779243040000,-5243.1876243,0.00010097,2]
[422684312,1779243040000,-55970.7555692,0.00010097,2]
[422684311,1779243040000,-4416.7867209,0.00010097,2]
[422684292,1779243040000,-2150.30031617,0.00010097,2]
[422684318,1779243040000,-304014.722838,0.00010097,2]
[422684365,1779243040000,-150.0,0.00010198,2]
[422684367,1779243040000,-150.0,0.00010198,2]
[422684401,1779243040000,-500.0,0.00010198,2]
[422684398,1779243040000,-500.0,0.00010198,2]
[422684399,1779243040000,-500.0,0.00010198,2]
[422684392,1779243040000,-500.0,0.00010198,2]
[422684394,1779243040000,-500.0,0.00010198,2]
[422684396,1779243040000,-500.0,0.00010198,2]
[422684403,1779243040000,-500.0,0.00010198,2]
[422684363,1779243040000,-427.27342089,0.00010198,2]
[422684383,1779243040000,-500.0,0.00010198,2]
[422684381,1779243040000,-500.0,0.00010198,2]
[422684385,1779243040000,-500.0,0.00010198,2]
[422684390,1779243040000,-500.0,0.00010198,2]
[422684387,1779243040000,-500.0,0.00010198,2]
[422684379,1779243040000,-500.0,0.00010198,2]
[422684388,1779243040000,-500.0,0.00010198,2]
[422684368,1779243040000,-150.0,0.00010198,2]
[422684350,1779243040000,-166.66,0.00010159,2]
[422684355,1779243040000,-500.0,0.00010198,2]
[422684354,1779243040000,-150.0,0.00010198,2]
[422684361,1779243040000,-500.0,0.00010198,2]
[422684372,1779243040000,-150.0,0.00010198,2]
[422684370,1779243040000,-276.41055717,0.00010198,2]
[422684374,1779243040000,-177.3227998,0.00010198,2]
[422684376,1779243040000,-258.32598541,0.00010198,2]
[422684377,1779243040000,-500.0,0.00010198,2]
[422684352,1779243040000,-163.390817,0.00010197,2]
[422684474,1779243041000,-500.0,0.00010198,2]
[422684470,1779243041000,-421.60813857,0.00010198,2]
[422684468,1779243041000,-500.0,0.00010198,2]
[422684467,1779243041000,-500.0,0.00010198,2]
[422684461,1779243041000,-329.2799258,0.00010198,2]
[422684465,1779243041000,-500.0,0.00010198,2]
[422684460,1779243041000,-500.0,0.00010198,2]
[422684458,1779243041000,-500.0,0.00010198,2]
[422684456,1779243041000,-500.0,0.00010198,2]
[422684463,1779243041000,-258.6080423,0.00010198,2]
[422684472,1779243041000,-592.0,0.00010198,2]
[422684495,1779243041000,-592.0,0.00010198,2]
[422684476,1779243041000,-592.0,0.00010198,2]
[422684480,1779243041000,-592.0,0.00010198,2]
[422684482,1779243041000,-500.0,0.00010198,2]
[422684487,1779243041000,-500.0,0.00010198,2]
[422684498,1779243041000,-592.0,0.00010198,2]
[422684493,1779243041000,-592.0,0.00010198,2]
[422684491,1779243041000,-170.4280822,0.00010198,2]
[422684484,1779243041000,-592.0,0.00010198,2]
[422684489,1779243041000,-592.0,0.00010198,2]
[422684496,1779243041000,-592.0,0.00010198,2]
[422684504,1779243041000,-592.0,0.00010198,2]
[422684449,1779243041000,-500.0,0.00010198,2]
[422684478,1779243041000,-500.0,0.00010198,2]
[422684451,1779243041000,-500.0,0.00010198,2]
[422684422,1779243041000,-500.0,0.00010198,2]
[422684455,1779243041000,-500.0,0.00010198,2]
[422684502,1779243041000,-592.0,0.00010198,2]
[422684408,1779243041000,-500.0,0.00010198,2]
[422684405,1779243041000,-500.0,0.00010198,2]
[422684407,1779243041000,-500.0,0.00010198,2]
[422684410,1779243041000,-500.0,0.00010198,2]
[422684414,1779243041000,-516.32917467,0.00010198,2]
[422684417,1779243041000,-500.0,0.00010198,2]
[422684426,1779243041000,-500.0,0.00010198,2]
[422684415,1779243041000,-452.54410648,0.00010198,2]
[422684431,1779243041000,-500.0,0.00010198,2]
[422684419,1779243041000,-500.0,0.00010198,2]
[422684453,1779243041000,-500.0,0.00010198,2]
[422684421,1779243041000,-243.97133842,0.00010198,2]
[422684424,1779243041000,-500.0,0.00010198,2]
[422684433,1779243041000,-500.0,0.00010198,2]
[422684435,1779243041000,-500.0,0.00010198,2]
[422684430,1779243041000,-500.0,0.00010198,2]
[422684437,1779243041000,-150.0,0.00010198,2]
[422684439,1779243041000,-500.0,0.00010198,2]
[422684448,1779243041000,-186.9005367,0.00010198,2]
[422684441,1779243041000,-150.0,0.00010198,2]
[422684444,1779243041000,-150.0,0.00010198,2]
[422684442,1779243041000,-500.0,0.00010198,2]
[422684446,1779243041000,-500.0,0.00010198,2]
[422684428,1779243041000,-500.0,0.00010198,2]
[422684500,1779243041000,-592.0,0.00010198,2]
[422684412,1779243041000,-500.0,0.00010198,2]
[422684516,1779243041000,-592.0,0.00010198,2]
[422684551,1779243041000,-500.0,0.00010198,2]